fUSD/lending_fUSD_20240625
["ID","MTS","AMOUNT","RATE_DAILY","PERIOD"]
[330372272,1719337896200,-1021.73,0.00019726,2]
[330372273,1719337896210,-500.0,0.00019726,2]
[330372274,1719337896220,-3949.53,0.00019726,2]
[330372275,1719337896231,-3888.53,0.00019726,2]
[330372276,1719337896240,-500.0,0.00019726,2]
[330372277,1719337896250,-151.0,0.00019726,2]
[330372278,1719337896260,-4247.19,0.00019726,2]
[330372279,1719337896269,-500.0,0.00019726,2]
[330372280,1719337896279,-500.0,0.00019726,2]
[330372281,1719337896288,-500.0,0.00019726,2]
[330372282,1719337896298,-500.0,0.00019726,2]
[330372283,1719337896308,-918.37,0.00019726,2]
[330372284,1719337896317,-214.54604418,0.00019726,2]
[330372285,1719337896329,-3324.06,0.00019726,2]
[330372286,1719337896339,-4509.77,0.00019726,2]
[330372287,1719337896350,-524.5,0.00019726,2]
[330372288,1719337896360,-500.0,0.00019726,2]
[330372289,1719337896370,-500.0,0.00019726,2]
[330372290,1719337896379,-500.0,0.00019726,2]
[330372291,1719337896389,-2990.81,0.00019726,2]
[330372292,1719337896398,-770.81,0.00019726,2]
[330372293,1719337896409,-500.0,0.00019726,2]
[330372294,1719337896418,-500.0,0.00019726,2]
[330372295,1719337896429,-500.0,0.00019726,2]
[330372296,1719337896439,-4435.09,0.00019726,2]
[330372297,1719337896448,-787.48,0.00019726,2]
[330372298,1719337896463,-513.47395527,0.00019726,2]
[330372299,1719337896473,-524.09,0.00019726,2]
[330372300,1719337896484,-816.41,0.00019726,2]
[330372301,1719337896494,-500.0,0.00019726,2]
[330372302,1719337896504,-2156.33,0.00019726,2]
[330372303,1719337896514,-588.33,0.00019726,2]
[330372304,1719337896524,-3040.27,0.00019726,2]
[330372305,1719337896534,-820.87,0.00019726,2]
[330372306,1719337896544,-500.0,0.00019726,2]
[330372307,1719337896554,-3953.78,0.00019726,2]
[330372308,1719337896564,-615.73,0.00019726,2]
[330372309,1719337896574,-1819.63,0.00019726,2]
[330372310,1719337896585,-500.0,0.00019726,2]
[330372311,1719337896594,-182.93252005,0.00019726,2]
[330372312,1719337896604,-500.0,0.00019726,2]
[330372313,1719337896613,-500.0,0.00019726,2]
[330372314,1719337896623,-593.21,0.00019726,2]
[330372315,1719337896633,-752.59,0.00019726,2]
[330372316,1719337896643,-1102.6,0.00019726,2]
[330372317,1719337896652,-1620.29,0.00019726,2]
[330372318,1719337896662,-500.0,0.00019726,2]
[330372319,1719337896672,-2816.47,0.00019726,2]
[330372320,1719337896682,-500.0,0.00019726,2]
[330372321,1719337896691,-726.8,0.00019726,2]
[330372322,1719337896701,-500.0,0.00019726,2]
[330372323,1719337896710,-500.0,0.00019726,2]
[330372324,1719337896719,-904.28,0.00019726,2]
[330372325,1719337896729,-4616.86,0.00019726,2]
[330372326,1719337896739,-500.0,0.00019726,2]
[330372327,1719337896749,-500.0,0.00019726,2]
[330372328,1719337896758,-500.0,0.00019726,2]
[330372329,1719337897014,-4354.84,0.00019726,2]
[330372330,1719337897025,-1001.05,0.00019726,2]
[330372331,1719337897035,-500.0,0.00019726,2]
[330372332,1719337897044,-2389.99,0.00019726,2]
[330372333,1719337897054,-4472.18,0.00019726,2]
[330372334,1719337897063,-1761.28,0.00019726,2]
[330372335,1719337897073,-745.04,0.00019726,2]
[330372336,1719337897083,-500.0,0.00019726,2]
[330372337,1719337897093,-1342.38,0.00019726,2]
[330372338,1719337897102,-500.0,0.00019726,2]
[330372339,1719337897112,-500.0,0.00019726,2]
[330372340,1719337897120,-500.0,0.00019726,2]
[330372341,1719337897129,-500.0,0.00019726,2]
[330372342,1719337897138,-1202.61,0.00019726,2]
[330372343,1719337897148,-956.56,0.00019726,2]
[330372344,1719337897162,-500.0,0.00019726,2]
[330372345,1719337897172,-4593.86,0.00019726,2]
[330372346,1719337897181,-1877.02,0.00019726,2]
[330372347,1719337897191,-500.0,0.00019726,2]
[330372348,1719337897202,-528.63,0.00019726,2]
[330372349,1719337897211,-500.0,0.00019726,2]
[330372350,1719337897220,-500.0,0.00019726,2]
[330372351,1719337897230,-1269.87,0.00019726,2]
[330372352,1719337897240,-500.0,0.00019726,2]
[330372353,1719337897250,-500.0,0.00019726,2]
[330372354,1719337897259,-500.0,0.00019726,2]
[330372355,1719337897268,-2157.36,0.00019726,2]
[330372356,1719337897278,-500.0,0.00019726,2]
[330372357,1719337897287,-500.0,0.00019726,2]
[330372358,1719337897297,-500.0,0.00019726,2]
[330372359,1719337897306,-1489.93,0.00019726,2]
[330372360,1719337897315,-724.21,0.00019726,2]
[330372361,1719337897325,-500.0,0.00019726,2]
[330372362,1719337897337,-4713.61,0.00019726,2]
[330372363,1719337897346,-875.21,0.00019726,2]
[330372364,1719337897357,-500.0,0.00019726,2]
[330372365,1719337897366,-3570.88,0.00019726,2]
[330372366,1719337897376,-3523.21,0.00019726,2]
[330372367,1719337897385,-3239.05,0.00019726,2]
[330372368,1719337897394,-517.55,0.00019726,2]
[330372369,1719337897403,-88150.18,0.00019726,2]
[330372370,1719337897412,-7491.31,0.00019726,2]
[330372371,1719337897421,-500.0,0.00019726,2]
[330372372,1719337897430,-500.0,0.00019726,2]
[330372373,1719337897439,-500.0,0.00019726,2]
[330372374,1719337897448,-500.0,0.00019726,2]
[330372375,1719337897458,-500.0,0.00019726,2]
[330372376,1719337897467,-1942.81,0.00019726,2]
[330372377,1719337897476,-1819.03,0.00019726,2]
[330372378,1719337897486,-500.0,0.00019726,2]
[330372379,1719337897495,-504.65,0.00019726,2]
[330372380,1719337897504,-503.8,0.00019726,2]
[330372381,1719337897514,-755.86,0.00019726,2]
[330372382,1719337897523,-500.0,0.00019726,2]
[330372383,1719337897532,-500.0,0.00019726,2]
[330372384,1719337897542,-500.0,0.00019726,2]
[330372385,1719337897551,-500.0,0.00019726,2]
[330372386,1719337897560,-500.0,0.00019726,2]
[330372387,1719337897569,-500.0,0.00019726,2]
[330372388,1719337897580,-500.0,0.00019726,2]
[330372389,1719337897589,-1033.56,0.00019726,2]
[330372390,1719337897598,-867.52,0.00019726,2]
[330372391,1719337897607,-869.1,0.00019726,2]
[330372392,1719337897617,-3677.19,0.00019726,2]
[330372393,1719337897626,-500.0,0.00019726,2]
[330372394,1719337897635,-500.0,0.00019726,2]
[330372395,1719337897644,-2597.7,0.00019726,2]
[330372396,1719337897653,-1409.52,0.00019726,2]
[330372397,1719337897662,-500.0,0.00019726,2]
[330372398,1719337897671,-719.97,0.00019726,2]
[330372399,1719337897681,-4086.22,0.00019726,2]
[330372400,1719337897690,-500.0,0.00019726,2]
[330372401,1719337897699,-500.0,0.00019726,2]
[330372402,1719337897708,-4448.43,0.00019726,2]
[330372403,1719337897717,-522.58,0.00019726,2]
[330372404,1719337897727,-500.0,0.00019726,2]
[330372405,1719337897736,-504.45,0.00019726,2]
[330372406,1719337897745,-500.0,0.00019726,2]
[330372407,1719337897754,-1285.26,0.00019726,2]
[330372408,1719337897763,-500.0,0.00019726,2]
[330372409,1719337897772,-602.97768548,0.00019726,2]
[330372410,1719337897781,-5556.35,0.00019726,2]
[330372411,1719337897790,-881.49,0.00019726,2]
[330372412,1719337897800,-1817.94,0.00019726,2]
[330372413,1719337897809,-922.55,0.00019726,2]
[330372414,1719337897818,-3590.68,0.00019726,2]
[330372415,1719337897828,-500.0,0.00019726,2]
[330372416,1719337897837,-4305.82,0.00019726,2]
[330372417,1719337897847,-500.0,0.00019726,2]
[330372418,1719337897856,-500.0,0.00019726,2]
[330372419,1719337897866,-1298.55,0.00019726,2]
[330372420,1719337897875,-1507.92,0.00019726,2]
[330372421,1719337897884,-2413.43,0.00019726,2]
[330372422,1719337897893,-500.0,0.00019726,2]
[330372423,1719337897902,-3243.57,0.00019726,2]
[330372424,1719337897912,-1317.91,0.00019726,2]
[330372425,1719337897921,-1549.61,0.00019726,2]
[330372426,1719337897931,-2001.24,0.00019726,2]
[330372427,1719337897940,-564.53,0.00019726,2]
[330372428,1719337897949,-1628.62,0.00019726,2]
[330372429,1719337897958,-2964.41,0.00019726,2]
[330372430,1719337897968,-733.32,0.00019726,2]
[330372431,1719337897977,-1000.0,0.00019726,2]
[330372432,1719337897986,-500.0,0.00019726,2]
[330372433,1719337897996,-3914.84,0.00019726,2]
[330372434,1719337898005,-500.0,0.00019726,2]
[330372435,1719337898014,-3375.19,0.00019726,2]
[330372436,1719337898024,-500.0,0.00019726,2]
[330372437,1719337898034,-1706.95,0.00019726,2]
[330372438,1719337898044,-2549.76,0.00019726,2]
[330372439,1719337898053,-14641.98,0.00019726,2]
[330372440,1719337898062,-971.21,0.00019726,2]
[330372441,1719337898072,-1141.9,0.00019726,2]
[330372442,1719337898081,-500.0,0.00019726,2]
[330372443,1719337898090,-4437.26,0.00019726,2]
[330372444,1719337898099,-500.0,0.00019726,2]
[330372445,1719337898108,-716.2,0.00019726,2]
[330372446,1719337898118,-2142.83,0.00019726,2]
[330372447,1719337898127,-6040.67,0.00019726,2]
[330372448,1719337898136,-500.0,0.00019726,2]
[330372449,1719337898147,-500.0,0.00019726,2]
[330372450,1719337898159,-1309.2,0.00019726,2]
[330372451,1719337898168,-500.0,0.00019726,2]
[330372452,1719337898177,-500.0,0.00019726,2]
[330372453,1719337898187,-500.0,0.00019726,2]
[330372454,1719337898197,-500.0,0.00019726,2]
[330372455,1719337898207,-500.0,0.00019726,2]
[330372456,1719337898216,-1734.08,0.00019726,2]
[330372457,1719337898225,-500.0,0.00019726,2]
[330372458,1719337898237,-1799.68,0.00019726,2]
[330372459,1719337898247,-500.0,0.00019726,2]
[330372460,1719337898256,-500.0,0.00019726,2]
[330372461,1719337898265,-500.0,0.00019726,2]
[330372462,1719337898275,-1105.8,0.00019726,2]
[330372463,1719337898284,-955.34,0.00019726,2]
[330372464,1719337898293,-500.0,0.00019726,2]
[330372465,1719337898303,-2122.24,0.00019726,2]
[330372466,1719337898313,-1732.57,0.00019726,2]
[330372467,1719337898322,-500.0,0.00019726,2]
[330372468,1719337898333,-500.0,0.00019726,2]
[330372469,1719337898342,-500.0,0.00019726,2]
[330372470,1719337898353,-1579.37,0.00019726,2]
[330372471,1719337898366,-3399.27,0.00019726,2]
[330372472,1719337898376,-500.0,0.00019726,2]
[330372473,1719337898385,-932.92,0.00019726,2]
[330372474,1719337898395,-500.0,0.00019726,2]
[330372475,1719337898404,-2440.43,0.00019726,2]
[330372476,1719337898414,-3708.7,0.00019726,2]
[330372477,1719337898424,-1254.93,0.00019726,2]
[330372478,1719337898433,-500.0,0.00019726,2]
[330372479,1719337898443,-2081.22,0.00019726,2]
[330372480,1719337898452,-1071.44,0.00019726,2]
[330372481,1719337898461,-59416.31,0.00019726,2]
[330372482,1719337898471,-500.0,0.00019726,2]
[330372483,1719337898480,-500.0,0.00019726,2]
[330372484,1719337898490,-2321.72,0.00019726,2]
[330372485,1719337898499,-2376.71,0.00019726,2]
[330372486,1719337898508,-500.0,0.00019726,2]
[330372487,1719337898518,-500.0,0.00019726,2]
[330372488,1719337898527,-1241.56,0.00019726,2]
[330372489,1719337898537,-564.08,0.00019726,2]
[330372490,1719337898547,-500.0,0.00019726,2]
[330372491,1719337898556,-500.0,0.00019726,2]
[330372492,1719337898565,-565.98,0.00019726,2]
[330372493,1719337898574,-5136.03,0.00019726,2]
[330372494,1719337898585,-500.0,0.00019726,2]
[330372495,1719337898595,-4739.43,0.00019726,2]
[330372496,1719337898604,-572.13,0.00019726,2]
[330372497,1719337898614,-2867.83,0.00019726,2]
[330372498,1719337898623,-1989.23,0.00019726,2]
[330372499,1719337898633,-500.0,0.00019726,2]
[330372500,1719337898642,-572.5,0.00019726,2]
[330372501,1719337898652,-500.0,0.00019726,2]
[330372502,1719337898662,-500.0,0.00019726,2]
[330372503,1719337898671,-7381.85,0.00019726,2]
[330372504,1719337898681,-2476.55,0.00019726,2]
[330372505,1719337898690,-1377.37,0.00019726,2]
[330372506,1719337898699,-2711.7,0.00019726,2]
[330372507,1719337898708,-500.0,0.00019726,2]
[330372508,1719337898718,-500.0,0.00019726,2]
[330372509,1719337898727,-3777.42,0.00019726,2]
[330372510,1719337898736,-500.0,0.00019726,2]
[330372511,1719337898746,-2118.67,0.00019726,2]
[330372512,1719337898755,-899.15,0.00019726,2]
[330372513,1719337898765,-3727.83,0.00019726,2]
[330372514,1719337898774,-626.5096822,0.00019726,2]
[330372515,1719337898784,-500.0,0.00019726,2]
[330372516,1719337898793,-500.0,0.00019726,2]
[330372517,1719337898802,-638.65998998,0.00019726,2]
[330372518,1719337898812,-500.0,0.00019726,2]
[330372519,1719337898822,-166.4221261,0.00019726,2]
[330372520,1719337898832,-1714.59,0.00019726,2]
[330372521,1719337898843,-1249.51,0.00019726,2]
[330372522,1719337898853,-500.0,0.00019726,2]
[330372523,1719337898863,-500.0,0.00019726,2]
[330372524,1719337898872,-1124.92,0.00019726,2]
[330372525,1719337898881,-7801.42,0.00019726,2]
[330372526,1719337898891,-500.0,0.00019726,2]
[330372527,1719337898900,-500.0,0.00019726,2]
[330372528,1719337898910,-600.95256329,0.00019726,2]
[330372529,1719337898920,-500.0,0.00019726,2]
[330372530,1719337898929,-500.0,0.00019726,2]
[330372531,1719337898939,-500.0,0.00019726,2]
[330372532,1719337898948,-756.47,0.00019726,2]
[330372533,1719337898957,-500.0,0.00019726,2]
[330372534,1719337898966,-513.46,0.00019726,2]
[330372535,1719337898975,-1269.94,0.00019726,2]
[330372536,1719337898984,-5672.8,0.00019726,2]
[330372537,1719337898993,-1185.0,0.00019726,2]
[330372538,1719337899002,-502.28797318,0.00019726,2]
[330372539,1719337899012,-500.0,0.00019726,2]
[330372540,1719337899021,-500.0,0.00019726,2]
[330372541,1719337899031,-623.2479507,0.00019726,2]
[330372542,1719337899040,-534.89,0.00019726,2]
[330372543,1719337899050,-2615.49,0.00019726,2]
[330372544,1719337899060,-646.58,0.00019726,2]
[330372545,1719337899069,-500.0,0.00019726,2]
[330372546,1719337899080,-500.0,0.00019726,2]
[330372547,1719337899090,-2694.51,0.00019726,2]
[330372548,1719337899100,-1157.21,0.00019726,2]
[330372549,1719337899110,-804.63,0.00019726,2]
[330372550,1719337899119,-500.0,0.00019726,2]
[330372551,1719337899129,-2626.43,0.00019726,2]
[330372552,1719337899139,-500.0,0.00019726,2]
[330372553,1719337899149,-662.07,0.00019726,2]
[330372554,1719337899162,-4836.5,0.00019726,2]
[330372555,1719337899173,-1217.03,0.00019726,2]
[330372556,1719337899182,-500.0,0.00019726,2]
[330372557,1719337899194,-771.68,0.00019726,2]
[330372558,1719337899203,-500.0,0.00019726,2]
[330372559,1719337899213,-500.0,0.00019726,2]
[330372560,1719337899223,-568.16688223,0.00019726,2]
[330372561,1719337899236,-754.98,0.00019726,2]
[330372562,1719337899246,-1630.22,0.00019726,2]
[330372563,1719337899256,-500.0,0.00019726,2]
[330372564,1719337899266,-2071.66,0.00019726,2]
[330372565,1719337899276,-500.0,0.00019726,2]
[330372566,1719337899286,-1168.43,0.00019726,2]
[330372567,1719337899296,-500.0,0.00019726,2]
[330372568,1719337899306,-500.0,0.00019726,2]
[330372569,1719337899316,-524.31,0.00019726,2]
[330372570,1719337899326,-500.0,0.00019726,2]
[330372571,1719337899335,-781.04,0.00019726,2]
[330372572,1719337899345,-500.0,0.00019726,2]
[330372573,1719337899356,-1588.79,0.00019726,2]
[330372574,1719337899366,-500.0,0.00019726,2]
[330372575,1719337899375,-2469.59,0.00019726,2]
[330372576,1719337899386,-500.0,0.00019726,2]
[330372577,1719337899395,-1092.3,0.00019726,2]
[330372578,1719337899406,-6611.18,0.00019726,2]
[330372579,1719337899416,-500.0,0.00019726,2]
[330372580,1719337899426,-500.0,0.00019726,2]
[330372581,1719337899437,-500.0,0.00019726,2]
[330372582,1719337899447,-647.89707993,0.00019726,2]
[330372583,1719337899457,-500.0,0.00019726,2]
[330372584,1719337899467,-8477.0,0.00019726,2]
[330372585,1719337899477,-1672.78,0.00019726,2]
[330372586,1719337899487,-854.06,0.00019726,2]
[330372587,1719337899498,-5214.8,0.00019726,2]
[330372588,1719337899508,-536.71,0.00019726,2]
[330372589,1719337899519,-151.0,0.00019726,2]
[330372590,1719337899528,-151.0,0.00019726,2]
[330372591,1719337899538,-500.0,0.00019726,2]
[330372592,1719337899548,-987.05,0.00019726,2]
[330372593,1719337899557,-500.0,0.00019726,2]
[330372594,1719337899567,-500.0,0.00019726,2]
[330372595,1719337899578,-500.0,0.00019726,2]
[330372596,1719337899587,-500.0,0.00019726,2]
[330372597,1719337899597,-500.0,0.00019726,2]
[330372598,1719337899606,-500.0,0.00019726,2]
[330372599,1719337899616,-500.0,0.00019726,2]
[330372600,1719337899626,-500.0,0.00019726,2]
[330372601,1719337899636,-500.0,0.00019726,2]
[330372602,1719337899646,-500.0,0.00019726,2]
[330372603,1719337899656,-500.0,0.00019726,2]
[330372604,1719337899666,-996.42,0.00019726,2]
[330372605,1719337899676,-502.37816262,0.00019726,2]
[330372606,1719337899685,-3032.63,0.00019726,2]
[330372607,1719337899695,-10484.79,0.00019726,2]
[330372608,1719337899705,-3109.31,0.00019726,2]
[330372609,1719337899715,-500.0,0.00019726,2]
[330372610,1719337899725,-1348.4,0.00019726,2]
[330372611,1719337899734,-500.0,0.00019726,2]
[330372612,1719337899743,-500.0,0.00019726,2]
[330372613,1719337899752,-650.12,0.00019726,2]
[330372614,1719337899762,-500.0,0.00019726,2]
[330372615,1719337899771,-1123.41,0.00019726,2]
[330372616,1719337899780,-500.0,0.00019726,2]
[330372617,1719337899789,-732.06,0.00019726,2]
[330372618,1719337899798,-500.0,0.00019726,2]
[330372619,1719337899808,-551.14,0.00019726,2]
[330372620,1719337899818,-500.0,0.00019726,2]
[330372621,1719337899828,-4888.19,0.00019726,2]
[330372622,1719337899838,-500.0,0.00019726,2]
[330372623,1719337899846,-1238.1,0.00019726,2]
[330372624,1719337899856,-500.0,0.00019726,2]
[330372625,1719337899865,-3533.14,0.00019726,2]
[330372626,1719337899874,-3632.37,0.00019726,2]
[330372627,1719337899884,-500.0,0.00019726,2]
[330372628,1719337899894,-5123.32,0.00019726,2]
[330372629,1719337899903,-500.0,0.00019726,2]
[330372630,1719337899912,-500.0,0.00019726,2]
[330372631,1719337899922,-712.46,0.00019726,2]
[330372632,1719337899931,-500.0,0.00019726,2]
[330372633,1719337899941,-862.31,0.00019726,2]
[330372634,1719337899950,-530.90971008,0.00019726,2]
[330372635,1719337899960,-500.0,0.00019726,2]
[330372636,1719337899970,-560.41,0.00019726,2]
[330372637,1719337899980,-527.81010787,0.00019726,2]
[330372638,1719337899990,-500.0,0.00019726,2]
[330372639,1719337899999,-2962.86,0.00019726,2]
[330372640,1719337900010,-500.0,0.00019726,2]
[330372641,1719337900020,-5218.77,0.00019726,2]
[330372642,1719337900030,-1050.12,0.00019726,2]
[330372643,1719337900039,-1124.52,0.00019726,2]
[330372644,1719337900049,-500.0,0.00019726,2]
[330372645,1719337900058,-872.11,0.00019726,2]
[330372646,1719337900068,-500.0,0.00019726,2]
[330372647,1719337900078,-3045.87,0.00019726,2]
[330372648,1719337900088,-500.0,0.00019726,2]
[330372649,1719337900097,-500.0,0.00019726,2]
[330372650,1719337900107,-1520.45,0.00019726,2]
[330372651,1719337900117,-2920.92,0.00019726,2]
[330372652,1719337900126,-646.32,0.00019726,2]
[330372653,1719337900136,-2187.74,0.00019726,2]
[330372654,1719337900147,-537.51,0.00019726,2]
[330372655,1719337900159,-500.0,0.00019726,2]
[330372656,1719337900169,-500.0,0.00019726,2]
[330372657,1719337900179,-7369.5,0.00019726,2]
[330372658,1719337900189,-1872.97,0.00019726,2]
[330372659,1719337900200,-4019.83,0.00019726,2]
[330372660,1719337900209,-500.0,0.00019726,2]
[330372661,1719337900219,-500.0,0.00019726,2]
[330372662,1719337900229,-6045.57,0.00019726,2]
[330372663,1719337900240,-500.0,0.00019726,2]
[330372664,1719337900250,-812.36,0.00019726,2]
[330372665,1719337900259,-500.0,0.00019726,2]
[330372666,1719337900269,-500.0,0.00019726,2]
[330372667,1719337900279,-500.0,0.00019726,2]
[330372668,1719337900288,-634.34,0.00019726,2]
[330372669,1719337900298,-805.26,0.00019726,2]
[330372670,1719337900308,-2739.91,0.00019726,2]
[330372671,1719337900318,-587.96,0.00019726,2]
[330372672,1719337900327,-500.0,0.00019726,2]
[330372673,1719337900337,-500.0,0.00019726,2]
[330372674,1719337900347,-500.0,0.00019726,2]
[330372675,1719337900357,-503.6731989,0.00019726,2]
[330372676,1719337900367,-1158.31,0.00019726,2]
[330372677,1719337900377,-1134.01,0.00019726,2]
[330372678,1719337900387,-500.0,0.00019726,2]
[330372679,1719337900396,-500.0,0.00019726,2]
[330372680,1719337900405,-500.0,0.00019726,2]
[330372681,1719337900415,-500.0,0.00019726,2]
[330372682,1719337900424,-615.9,0.00019726,2]
[330372683,1719337900434,-1656.37,0.00019726,2]
[330372684,1719337900443,-500.0,0.00019726,2]
[330372685,1719337900453,-643.79,0.00019726,2]
[330372686,1719337900462,-500.0,0.00019726,2]
[330372687,1719337900472,-500.0,0.00019726,2]
[330372688,1719337900481,-500.0,0.00019726,2]
[330372689,1719337900490,-2906.26,0.00019726,2]
[330372690,1719337900500,-2209.86,0.00019726,2]
[330372691,1719337900509,-500.0,0.00019726,2]
[330372692,1719337900519,-1797.61,0.00019726,2]
[330372693,1719337900528,-1052.7,0.00019726,2]
[330372694,1719337900537,-500.0,0.00019726,2]
[330372695,1719337900546,-500.0,0.00019726,2]
[330372696,1719337900555,-1660.97,0.00019726,2]
[330372697,1719337900565,-18533.12,0.00019726,2]
[330372698,1719337900574,-9362.98,0.00019726,2]
[330372699,1719337900584,-987.45,0.00019726,2]
[330372700,1719337900593,-500.0,0.00019726,2]
[330372701,1719337900603,-3674.69,0.00019726,2]
[330372702,1719337900612,-500.0,0.00019726,2]
[330372703,1719337900621,-500.0,0.00019726,2]
[330372704,1719337900631,-500.0,0.00019726,2]
[330372705,1719337900640,-500.0,0.00019726,2]
[330372706,1719337900649,-521.43,0.00019726,2]
[330372707,1719337900659,-500.0,0.00019726,2]
[330372708,1719337900668,-500.0,0.00019726,2]
[330372709,1719337900678,-3489.35,0.00019726,2]
[330372710,1719337900687,-1828.54,0.00019726,2]
[330372711,1719337900697,-500.0,0.00019726,2]
[330372712,1719337900921,-500.0,0.00019726,2]
[330372713,1719337900931,-1060.9,0.00019726,2]
[330372714,1719337900940,-500.0,0.00019726,2]
[330372715,1719337900950,-1048.33,0.00019726,2]
[330372716,1719337900959,-500.0,0.00019726,2]
[330372717,1719337900968,-582.75,0.00019726,2]
[330372718,1719337900978,-7330.4,0.00019726,2]
[330372719,1719337900987,-500.0,0.00019726,2]
[330372720,1719337900996,-500.0,0.00019726,2]
[330372721,1719337901006,-500.0,0.00019726,2]
[330372722,1719337901016,-50997.71,0.00019726,2]
[330372723,1719337901026,-1090.36,0.00019726,2]
[330372724,1719337901035,-500.0,0.00019726,2]
[330372725,1719337901044,-588.44,0.00019726,2]
[330372726,1719337901054,-3826.38,0.00019726,2]
[330372727,1719337901063,-500.0,0.00019726,2]
[330372728,1719337901073,-1076.79,0.00019726,2]
[330372729,1719337901083,-875.7,0.00019726,2]
[330372730,1719337901093,-2013.15,0.00019726,2]
[330372731,1719337901102,-1764.68,0.00019726,2]
[330372732,1719337901112,-153.09754786,0.00019726,2]
[330372733,1719337901121,-500.0,0.00019726,2]
[330372734,1719337901130,-2546.28,0.00019726,2]
[330372735,1719337901139,-1202.57,0.00019726,2]
[330372736,1719337901150,-575.15,0.00019726,2]
[330372737,1719337901161,-710.06,0.00019726,2]
[330372738,1719337901170,-500.0,0.00019726,2]
[330372739,1719337901179,-500.0,0.00019726,2]
[330372740,1719337901189,-13097.11,0.00019726,2]
[330372741,1719337901198,-2661.42,0.00019726,2]
[330372742,1719337901207,-500.0,0.00019726,2]
[330372743,1719337901216,-2226.45,0.00019726,2]
[330372744,1719337901226,-500.0,0.00019726,2]
[330372745,1719337901239,-632.99,0.00019726,2]
[330372746,1719337901248,-500.0,0.00019726,2]
[330372747,1719337901257,-500.0,0.00019726,2]
[330372748,1719337901266,-538.22,0.00019726,2]
[330372749,1719337901276,-1320.08,0.00019726,2]
[330372750,1719337901285,-500.0,0.00019726,2]
[330372751,1719337901294,-500.0,0.00019726,2]
[330372752,1719337901303,-500.0,0.00019726,2]
[330372753,1719337901313,-2469.45,0.00019726,2]
[330372754,1719337901322,-38471.4,0.00019726,2]
[330372755,1719337901332,-500.0,0.00019726,2]
[330372756,1719337901341,-1721.67,0.00019726,2]
[330372757,1719337901351,-500.0,0.00019726,2]
[330372758,1719337901361,-1003.19,0.00019726,2]
[330372759,1719337901370,-3940.81,0.00019726,2]
[330372760,1719337901379,-1938.52,0.00019726,2]
[330372761,1719337901389,-2588.15,0.00019726,2]
[330372762,1719337901398,-387.73856242,0.00019726,2]
[330372763,1719337901407,-500.0,0.00019726,2]
[330372764,1719337901417,-500.0,0.00019726,2]
[330372765,1719337901426,-7195.96,0.00019726,2]
[330372766,1719337901435,-500.0,0.00019726,2]
[330372767,1719337901445,-500.0,0.00019726,2]
[330372768,1719337901454,-500.0,0.00019726,2]
[330372769,1719337901463,-39156.53,0.00019726,2]
[330372770,1719337901473,-3038.22,0.00019726,2]
[330372771,1719337901483,-500.0,0.00019726,2]